bitfinex/quotes_ETHUSD_20250329
["timestamp","ask_amount","ask_price","bid_price","bid_amount"]
[1743248571397,11.70130448,1842.9,1842.5,5.42724]
[1743248571821,11.70130448,1842.9,1842.5,10.85451]
[1743248572101,8.2153,1843.1,1842.8,5.42636]
[1743248572693,5.42634,1842.9,1842.5,5.42739]
[1743248573273,5.42619,1843.0,1842.5,11.94002]
[1743248573470,12.80684311,1843.1,1842.7,5.4267]
[1743248573704,22.55098448,1843.1,1842.6,5.4271]
[1743248574015,5.42597,1843.0,1842.6,5.42693]
[1743248574369,17.12507448,1843.1,1842.6,5.42684]
[1743248574569,11.69930448,1843.1,1842.7,5.42659]
[1743248574765,1.5143,1843.1,1842.8,5.42636]
[1743248574999,8.2133,1843.1,1842.9,5.42616]
[1743248575310,1.5143,1843.3,1843.0,5.42574]
[1743248575599,1.5143,1843.3,1843.0,5.42592]
[1743248575799,1.5143,1843.3,1842.9,5.42621]
[1743248575989,5.42565,1843.1,1842.7,5.42652]
[1743248576294,8.90965448,1843.1,1842.7,5.4267]
[1743248576478,8.90965448,1843.1,1842.6,5.42707]
[1743248576795,5.42605,1843.0,1842.6,10.85406]
[1743248577101,3.48400448,1843.1,1842.7,5.42681]
[1743248577277,3.48400448,1843.1,1842.8,5.42647]
[1743248577699,8.90968448,1843.1,1842.7,5.42681]
[1743248577898,5.42534,1843.2,1842.7,5.969361]
[1743248578117,2.58913703,1843.3,1843.1,5.42557]
[1743248578356,1.07483703,1843.3,1843.1,5.42557]
[1743248579429,1.07483703,1843.3,1843.2,5.42534]
[1743248579574,6.697,1843.4,1843.2,5.42534]
[1743248580595,14.33275448,1843.6,1843.2,6.510411]
[1743248580596,12.12027,1843.6,1843.2,6.510411]
[1743248580803,15.60427448,1843.6,1843.2,5.42532]
[1743248581003,8.90898448,1843.4,1842.9,5.42609]
[1743248581176,1.5453,1843.3,1842.9,5.426]
[1743248581377,1.5453,1843.3,1843.0,5.42592]
[1743248581672,5.42577,1843.1,1842.6,5.42687]
[1743248581876,5.42577,1843.1,1842.8,5.42626]
[1743248581877,6.695,1843.1,1842.8,5.42626]
[1743248582075,6.695,1843.1,1842.9,5.42614]
[1743248582277,6.97052,1843.3,1842.9,5.42614]
[1743248582479,9.97036,1843.3,1842.9,5.42602]
[1743248582679,6.97036,1843.3,1842.9,5.42602]
[1743248582879,1.5453,1843.3,1842.9,5.42602]
[1743248583100,1.5453,1843.3,1843.0,5.42578]
[1743248583301,1.5453,1843.3,1843.1,5.4256]
[1743248583475,1.5453,1843.3,1843.0,5.42578]
[1743248583993,6.97039,1843.3,1842.9,5.42621]
[1743248584317,3.0,1843.1,1842.4,1.5115]
[1743248584475,5.42635,1842.9,1842.4,5.42759]
[1743248584670,12.11935,1842.9,1842.4,5.42755]
[1743248584870,12.11935,1842.9,1842.5,5.42738]
[1743248585097,17.54582,1842.9,1842.5,5.42738]
[1743248585295,17.54582,1842.9,1842.5,5.4272]
[1743248585296,6.693,1842.9,1842.5,5.4272]
[1743248585501,6.693,1842.9,1842.6,5.42699]
[1743248585704,6.693,1842.9,1842.6,5.42686]
[1743248585997,10.17700448,1842.9,1842.2,6.93971]
[1743248586203,6.693,1842.9,1842.7,5.42666]
[1743248586956,6.693,1842.9,1842.6,5.42693]
[1743248587075,6.693,1842.9,1842.7,5.42658]
[1743248587278,8.2815,1843.1,1842.8,5.42652]
[1743248587479,8.2815,1843.1,1842.9,5.42599]
[1743248587678,6.692,1843.1,1843.0,5.42593]
[1743248588044,8.2805,1843.3,1843.0,5.42593]
[1743248588399,1.5895,1843.3,1843.0,5.42593]
[1743248588598,13.70573,1843.3,1842.9,5.42622]
[1743248588800,5.42536,1843.2,1842.8,10.85278]
[1743248589002,5.42536,1843.2,1842.8,5.4263]
[1743248589308,8.90984448,1843.1,1842.7,5.4268]
[1743248590013,5.42606,1843.0,1842.5,5.42713]
[1743248590685,1.5895,1842.9,1842.5,5.42713]
[1743248590882,1.5895,1842.9,1842.6,5.42711]
[1743248591486,1.5895,1842.9,1842.5,10.85436]
[1743248591487,7.01577,1842.9,1842.5,10.85436]
[1743248591692,7.01577,1842.9,1842.5,5.42713]
[1743248592301,1.59240945,1843.2,1842.8,5.42627]
[1743248592302,7.01501,1843.2,1842.8,5.42627]
[1743248592606,7.01501,1843.2,1842.9,0.05426362]
[1743248592607,1.5895,1843.2,1842.9,0.05426362]
[1743248592780,10.49797448,1843.5,1843.1,5.42544]
[1743248592981,6.689,1843.4,1843.1,5.42544]
[1743248593280,5.4255,1843.2,1842.8,5.42651]
[1743248593604,5.42597,1843.0,1842.6,5.42709]
[1743248594109,1.5895,1843.1,1842.8,5.42652]
[1743248594696,7.0152,1843.1,1842.7,5.42653]
[1743248594891,7.0152,1843.1,1842.7,10.85323]
[1743248595406,5.42614,1843.0,1842.6,5.4271]
[1743248595594,10.49915448,1843.1,1842.6,5.42696]
[1743248595774,5.42605,1843.0,1842.6,10.85392]
[1743248596311,5.42605,1843.0,1842.6,10.85396]
[1743248596488,5.42605,1843.0,1842.6,5.42696]
[1743248596693,5.42605,1843.0,1842.3,6.121941]
[1743248596694,10.17100448,1842.9,1842.4,5.42767]
[1743248596990,12.44305,1842.8,1842.3,10.8557]
[1743248597708,5.42755,1842.5,1841.9,1.5115]
[1743248597877,8.2765,1842.4,1841.9,1.5115]
[1743248598080,8.2765,1842.4,1842.1,5.42831]
[1743248598413,8.2765,1842.4,1842.2,5.42808]
[1743248599009,13.70421,1842.4,1842.0,5.42886]
[1743248599203,8.2765,1842.4,1842.0,5.42863]
[1743248599408,8.2765,1842.4,1841.9,1.5115]
[1743248599409,5.42801,1842.3,1841.9,5.42903]
[1743248599580,5.42801,1842.3,1841.9,11.41797911]
[1743248599894,13.70429,1842.4,1842.0,5.42881]
[1743248600293,13.70429,1842.4,1842.0,5.42867]
[1743248600294,8.2765,1842.4,1842.0,5.42867]
[1743248600518,13.70431,1842.4,1842.0,5.42867]
[1743248600913,8.2765,1842.4,1842.1,5.42845]
[1743248601114,8.2765,1842.4,1842.2,5.42824]
[1743248601310,6.687,1842.4,1842.2,5.42824]
[1743248601478,6.687,1842.4,1842.3,5.42799]
[1743248601682,6.687,1842.4,1842.2,5.42824]
[1743248602197,3.0,1842.8,1842.2,2.65216048]
[1743248602198,8.3342,1842.8,1842.2,2.65216048]
[1743248602414,8.91102448,1842.7,1842.1,5.42831]
[1743248602582,8.91102448,1842.7,1841.9,7.50114911]
[1743248602583,8.91102448,1842.7,1842.3,5.42779]
[1743248602778,8.3342,1842.8,1842.4,5.42761]
[1743248603095,7.0758,1842.8,1842.4,5.42761]
[1743248603304,6.685,1842.7,1842.4,5.42761]
[1743248603505,6.685,1842.7,1842.3,5.42799]
[1743248604103,12.08775348,1842.7,1842.1,5.4285]
[1743248604412,1.6492,1842.4,1841.9,2.07219911]
[1743248604714,1.6492,1842.4,1841.9,5.42901]
[1743248604923,1.6492,1842.6,1841.7,6.94178]
[1743248605083,4.6492,1842.6,1842.2,5.42817]
[1743248605412,1.6492,1842.6,1842.1,5.42853]
[1743248605615,8.3332,1842.6,1842.4,5.42746]
[1743248605814,6.684,1842.6,1842.5,5.4274]
[1743248606127,6.684,1842.6,1842.4,5.42764]
[1743248606328,12.11117,1842.6,1842.2,5.42821]
[1743248606619,12.11117,1842.6,1842.3,10.85579]
[1743248606620,6.684,1842.6,1842.3,10.85579]
[1743248606915,6.684,1842.6,1842.3,5.42781]
[1743248607628,12.11114,1842.6,1842.3,5.42781]
[1743248607983,6.684,1842.6,1842.3,5.42781]
[1743248608399,12.11128,1842.6,1842.2,5.42828]
[1743248608629,12.11128,1842.6,1842.2,10.85635]
[1743248608791,12.11128,1842.6,1842.2,5.42807]
[1743248609126,1.6492,1842.4,1842.1,5.42857]
[1743248610515,1.6492,1842.4,1842.2,5.42811]
[1743248611249,7.07696,1842.4,1842.0,5.42875]
[1743248611518,7.07696,1842.4,1842.0,10.85742]
[1743248611727,1.6492,1842.4,1842.1,5.42842]
[1743248611896,1.6492,1842.4,1842.1,5.42838]
[1743248612101,6.684,1842.6,1842.2,5.42804]
[1743248612436,6.97339,1842.7,1842.4,5.42744]
[1743248612437,11.2275,1842.7,1842.4,5.42744]
[1743248612719,6.681,1842.8,1842.6,5.42711]
[1743248613019,6.681,1842.8,1842.6,5.42693]
[1743248613212,6.681,1842.8,1842.7,5.42677]
[1743248613523,6.681,1842.8,1842.6,10.85387]
[1743248614093,6.681,1842.8,1842.7,5.42681]
[1743248614431,6.681,1842.8,1842.6,5.42693]
[1743248614800,6.681,1842.8,1842.6,10.85393]
[1743248615001,6.681,1842.8,1842.6,5.42693]
[1743248615745,6.681,1842.8,1842.6,5.42692]
[1743248616120,6.681,1842.8,1842.6,10.85392]
[1743248616324,6.681,1842.8,1842.6,5.42692]
[1743248616829,5.42703,1842.7,1842.3,5.42788]
[1743248617125,5.4275,1842.5,1842.1,5.42843]
[1743248617325,10.8551,1842.5,1842.1,5.42843]
[1743248617509,6.66311,1842.5,1842.1,5.42843]
[1743248618116,6.66311,1842.5,1842.0,5.42885]
[1743248618317,5.4277,1842.4,1842.0,10.85753]
[1743248618490,1.23561,1842.5,1841.9,6.99935]
[1743248618696,5.42813,1842.3,1841.9,5.42915]
[1743248618913,6.677,1842.3,1841.9,10.85814]
[1743248619109,12.105,1842.3,1841.9,5.42899]
[1743248619640,12.105,1842.3,1841.8,5.42946]
[1743248619847,5.42869,1842.1,1841.6,7.00019]
[1743248620043,8.13979,1842.2,1841.7,5.42965]
[1743248620323,5.42881,1842.1,1841.6,7.00008]
[1743248620514,10.85758,1842.1,1841.7,5.42972]
[1743248620731,5.42893,1842.0,1841.6,5.42988]
[1743248620925,1.08577,1842.0,1841.4,7.00081]
[1743248621124,5.42933,1841.9,1841.4,7.00064]
[1743248621342,1.501,1841.7,1841.3,5.43092]
[1743248621514,6.93091,1841.7,1841.3,5.43092]
[1743248621731,6.93091,1841.7,1841.1,1.5702]
[1743248621732,5.43011,1841.6,1841.1,5.43147]
[1743248622038,5.43011,1841.6,1841.2,5.43119]
[1743248622226,6.676,1841.8,1841.5,5.43009]
[1743248622425,12.10559,1841.8,1841.3,5.43073]
[1743248622736,17.94717714,1841.8,1841.3,5.43073]
[1743248623110,17.94717714,1841.8,1841.2,5.43123]
[1743248623111,5.42985,1841.7,1841.2,10.86232]
[1743248623326,5.973165,1841.6,1841.1,5.4314]
[1743248623641,5.43054,1841.5,1841.1,5.4314]
[1743248624537,3.542985,1841.6,1841.2,5.43111]
[1743248624717,3.0,1841.6,1841.2,10.86219]
[1743248624925,3.0,1841.6,1841.3,5.43093]
[1743248625230,4.501,1841.6,1841.3,5.43081]
[1743248625629,29.79409271,1842.0,1841.3,5.43081]
[1743248625630,8.91200448,1842.3,1841.8,5.42947]
[1743248625836,6.675,1842.1,1842.0,5.42888]
[1743248626450,2.60167668,1842.3,1841.8,5.42947]
[1743248626608,2.60167668,1842.3,1842.1,5.42848]
[1743248626609,7.77567668,1842.3,1842.1,5.42848]
[1743248627106,7.77567668,1842.3,1842.1,10.8569]
[1743248627522,1.10067668,1842.3,1842.2,5.42829]
[1743248627718,6.92769,1842.8,1842.3,5.42797]
[1743248627935,5.42694,1842.7,1842.2,5.42801]
[1743248628112,6.419734,1842.7,1842.2,10.85616]
[1743248628315,1.501,1842.8,1842.4,5.42741]
[1743248628642,1.501,1842.8,1842.4,10.8554]
[1743248628846,1.501,1842.8,1842.5,5.42736]
[1743248629246,6.92757,1842.8,1842.4,5.4277]
[1743248629542,6.92757,1842.8,1842.3,10.85578]
[1743248629733,5.42685,1842.7,1842.2,5.42824]
[1743248629931,10.85388,1842.7,1842.2,5.42824]
[1743248630148,5.42685,1842.7,1842.3,5.42798]
[1743248631358,9.28728645,1842.8,1842.3,5.42775]
[1743248631519,6.92753,1842.8,1842.4,5.42758]
[1743248631719,1.501,1842.8,1842.4,5.42751]
[1743248631914,1.501,1842.8,1842.5,5.42725]
[1743248632414,6.92753,1842.8,1842.4,5.42751]
[1743248632874,1.501,1842.8,1842.5,5.42723]
[1743248633649,1.501,1842.8,1842.5,5.42718]
[1743248634861,7.75976,1842.9,1842.5,6.512667]
[1743248635152,13.18604,1842.9,1842.5,6.512667]
[1743248635651,5.42659,1842.8,1842.3,5.42785]
[1743248635946,1.5901,1842.6,1842.3,5.42785]
[1743248636320,1.5901,1842.6,1842.3,5.42782]
[1743248636616,4.5901,1842.8,1842.4,5.42769]
[1743248636834,4.5901,1842.8,1842.5,5.42737]
[1743248637226,1.5901,1842.8,1842.4,5.42769]
[1743248637564,5.42702,1842.7,1842.3,5.42783]
[1743248637725,5.42715,1842.6,1842.2,5.42803]
[1743248637920,5.4276,1842.5,1842.1,10.85705]
[1743248638540,5.42757,1842.5,1842.1,5.42847]
[1743248639158,13.68481,1842.4,1841.9,5.42904]
[1743248639457,13.68481,1842.4,1841.7,5.4296]
[1743248639458,5.42875,1842.1,1841.7,5.4296]
[1743248639756,12.09429,1842.2,1841.5,5.43035]
[1743248639936,12.09429,1842.2,1841.4,1.5111]
[1743248640139,12.09429,1842.2,1841.8,5.42933]
[1743248640360,14.2833891,1842.2,1841.8,5.42933]
[1743248640648,8.8550991,1842.2,1841.9,5.42909]
[1743248640822,4.5901,1842.4,1842.0,5.42875]
[1743248641020,6.666,1842.3,1842.1,5.42846]
[1743248641258,6.666,1842.3,1842.0,5.42863]
[1743248641434,6.666,1842.3,1841.9,5.42917]
[1743248641635,13.26812045,1842.3,1841.9,5.42917]
[1743248642643,7.84001045,1842.3,1841.9,5.42896]
[1743248642939,6.666,1842.3,1842.1,5.42844]
[1743248643361,6.666,1842.3,1842.0,5.42887]
[1743248643930,6.666,1842.3,1842.0,5.42866]
[1743248644131,6.666,1842.3,1842.1,5.42853]
[1743248644354,6.666,1842.3,1842.0,5.42883]
[1743248644930,6.666,1842.3,1842.1,5.42847]
[1743248645132,6.666,1842.3,1842.0,5.42883]
[1743248645341,6.666,1842.3,1842.0,5.42864]
[1743248645539,6.666,1842.3,1842.1,5.42843]
[1743248646152,6.666,1842.3,1842.0,5.42864]
[1743248647253,6.666,1842.3,1842.0,10.85736]
[1743248647453,6.666,1842.3,1842.0,6.514376]
[1743248647655,12.09411,1842.3,1841.8,10.85863]
[1743248648460,12.09411,1842.3,1841.9,5.42915]
[1743248648965,6.666,1842.3,1841.9,10.85813]
[1743248649348,6.666,1842.3,1842.0,5.42885]
[1743248649543,6.666,1842.3,1842.1,5.42846]
[1743248649752,6.666,1842.3,1842.1,5.42834]
[1743248650154,30.2708,1842.7,1842.5,5.42719]
[1743248650357,28.731,1842.7,1842.5,5.42719]
[1743248650683,28.731,1842.7,1842.5,10.85447]
[1743248650977,28.731,1842.7,1842.5,5.42719]
[1743248651146,28.731,1842.7,1842.6,5.42711]
[1743248651639,6.661,1842.8,1842.5,5.42719]
[1743248652469,5.42687,1842.7,1842.3,5.42796]
[1743248652671,5.42687,1842.7,1842.3,5.42798]
[1743248652875,1.5398,1842.5,1842.2,5.42828]
[1743248653675,6.96732,1842.5,1842.0,7.507235]
[1743248653875,6.96732,1842.5,1842.1,5.42837]
[1743248654375,2.779244,1842.5,1842.1,10.85671]
[1743248654776,2.779244,1842.5,1842.1,5.42834]
[1743248654973,5.42785,1842.4,1842.0,5.42886]
[1743248655675,5.42785,1842.4,1842.0,10.85753]
[1743248656242,6.96742,1842.5,1842.1,5.4285]
[1743248656655,5.42783,1842.4,1842.0,5.42867]
[1743248657804,5.42832,1842.2,1841.7,1.07797465]
[1743248658083,1.5266,1842.1,1841.8,5.4293]
[1743248658779,6.95529,1842.1,1841.7,10.85916]
[1743248658953,10.85873,1841.9,1841.5,5.43011]
[1743248659278,14.34263448,1841.9,1841.5,5.43011]
[1743248659678,5.42964,1841.8,1841.4,5.43064]
[1743248659883,6.95638,1841.7,1841.3,5.43082]
[1743248660083,5.43006,1841.6,1841.1,7.09291]
[1743248660263,5.43006,1841.6,1841.1,5.43131]
[1743248660461,5.43006,1841.6,1841.2,5.431]
[1743248660888,5.43006,1841.6,1840.9,8.19036826]
[1743248660889,5.43087,1841.4,1840.9,8.19036826]
[1743248661063,1.5266,1841.3,1841.0,5.4318]
[1743248661377,2.01808588,1841.3,1841.0,5.4318]
[1743248661580,2.01808588,1841.3,1840.9,5.43194]
[1743248661748,7.44914588,1841.3,1840.9,5.43194]
[1743248662282,0.49148588,1841.2,1840.8,5.43222]
[1743248662680,5.92274588,1841.2,1840.7,7.09431]
[1743248662874,5.92274588,1841.2,1840.5,1.06787556]
[1743248662875,8.91609448,1841.0,1840.5,5.43317]
[1743248663071,3.48400448,1841.0,1840.3,5.43389]
[1743248663287,8.1816,1841.1,1840.8,5.43228]
[1743248663848,0.49148588,1841.0,1840.6,5.43273]
[1743248664122,5.92333588,1841.0,1840.6,5.43273]
[1743248664383,7.87698247,1841.0,1840.5,5.43314]
[1743248664581,7.87698247,1841.0,1840.4,5.48792356]
[1743248664582,5.43243,1840.8,1840.4,5.4336]
[1743248664884,10.44357448,1840.7,1840.3,5.43377]
[1743248665087,6.654,1840.6,1840.3,5.43377]
[1743248665958,6.654,1840.6,1840.2,10.86824]
[1743248666165,6.654,1840.6,1840.3,5.43387]
[1743248667186,6.654,1840.6,1840.3,5.43374]
[1743248667752,17.52029,1840.6,1840.2,5.43419]
[1743248667978,6.654,1840.6,1840.3,5.43384]
[1743248668565,6.96048,1840.4,1839.8,5.43508]
[1743248668763,1.5266,1840.4,1839.9,5.43506]
[1743248669061,1.5266,1840.4,1840.2,5.43417]
[1743248669662,1.5266,1840.4,1840.1,5.43428]
[1743248669885,1.5266,1840.4,1840.0,5.43475]
[1743248670090,1.5266,1840.4,1840.2,5.43413]
[1743248670294,1.5266,1840.4,1840.1,5.43446]
[1743248671293,1.5266,1840.4,1840.0,5.43478]
[1743248671480,1.5266,1840.4,1840.1,5.43447]
[1743248671718,1.5266,1840.4,1840.0,5.43461]
[1743248672261,1.5266,1840.4,1840.3,5.43389]
[1743248672482,6.653,1840.5,1840.3,5.43389]
[1743248672858,6.653,1840.5,1840.2,5.43396]
[1743248673059,6.653,1840.5,1840.1,5.43443]
[1743248673296,6.653,1840.5,1840.2,5.43415]
[1743248673872,3.04168879,1840.6,1840.3,5.43364]
[1743248674078,3.04168879,1840.6,1840.2,6.520828]
[1743248674265,1.93555797,1840.6,1840.3,5.43372]
[1743248674587,1.93555797,1840.6,1840.3,5.43366]
[1743248674794,1.93555797,1840.6,1840.3,10.86733]
[1743248675193,1.93555797,1840.6,1840.4,5.43335]
[1743248675399,7.05676,1839.7,1839.2,5.43687]
[1743248675695,0.284,1839.5,1838.9,5.43799]
[1743248675900,5.72055,1839.5,1838.9,6.79278411]
[1743248676381,1.6211,1839.3,1838.9,1.35494411]
[1743248676574,1.6211,1839.3,1838.9,6.79285411]
[1743248676969,1.6211,1839.3,1838.9,6.79272411]
[1743248677181,1.6211,1839.3,1839.0,5.43768]
[1743248677382,0.284,1839.5,1839.2,5.43714]
[1743248677583,0.284,1839.5,1839.3,5.43659]
[1743248677775,0.284,1839.5,1839.3,10.87319]
[1743248678096,0.284,1839.5,1839.2,5.4371]
[1743248678343,0.69883936,1839.5,1839.1,5.43731]
[1743248678511,0.69883936,1839.5,1839.0,5.43762]
[1743248678812,0.284,1839.5,1839.1,5.43741]
[1743248679115,0.284,1839.5,1839.2,5.43712]
[1743248679271,0.284,1839.5,1839.2,5.43698]
[1743248679689,0.284,1839.5,1839.0,5.981212]
[1743248679999,0.284,1839.5,1839.2,5.437]
[1743248680332,0.284,1839.5,1839.1,5.43718]
[1743248680487,0.284,1839.5,1839.0,0.543762]
[1743248680488,7.3560167,1839.5,1839.0,5.43768]
[1743248680798,6.95748,1839.5,1839.0,5.4375]
[1743248681094,0.284,1839.5,1839.2,5.43699]
[1743248681476,6.651,1839.6,1839.2,10.87391]
[1743248681682,6.651,1839.6,1839.2,10.87392]
[1743248681878,6.651,1839.6,1839.2,5.43692]
[1743248682088,6.651,1839.6,1839.2,5.43706]
[1743248683105,8.2711,1839.7,1839.4,5.43644]
[1743248683784,8.2711,1839.7,1839.5,5.43625]
[1743248684110,13.70693,1839.7,1839.2,5.43694]
[1743248684423,8.92001448,1839.6,1839.2,5.43694]
[1743248684730,13.70693,1839.7,1839.2,5.43694]
[1743248684894,16.26956045,1839.7,1839.2,5.43692]
[1743248685086,16.26956045,1839.7,1839.3,5.43672]
[1743248685831,8.92008448,1839.6,1839.1,5.43736]
[1743248686198,8.92008448,1839.6,1839.1,10.87467]
[1743248686388,9.33627422,1839.6,1839.1,5.43731]
[1743248686719,5.43686,1839.3,1838.9,5.438]
[1743248686937,5.10640448,1839.4,1838.8,5.43832]
[1743248687138,1.6224,1839.4,1839.1,5.43743]
[1743248687342,5.43691,1839.3,1838.9,5.43782]
[1743248687546,10.54299448,1839.4,1838.9,5.43779]
[1743248687835,5.43696,1839.3,1838.9,5.43779]
[1743248688051,6.16070393,1839.4,1838.8,5.43831]
[1743248688189,10.54296448,1839.4,1838.9,5.43801]
[1743248688543,10.54296448,1839.4,1839.0,5.43754]
[1743248688888,10.87399,1839.3,1838.8,5.43832]
[1743248689089,6.648,1839.2,1838.8,5.4382]
[1743248689393,7.13433211,1839.2,1838.9,5.43783]
[1743248689606,7.13433211,1839.2,1839.0,10.8752]
[1743248689819,7.13433211,1839.2,1839.0,5.43752]
[1743248690047,0.48633211,1839.2,1839.1,5.43744]
[1743248690201,8.2694,1839.4,1839.2,5.437]
[1743248690426,6.647,1839.4,1839.2,5.43694]
[1743248690731,8.2876,1839.7,1839.4,5.43635]
[1743248691031,13.7234,1839.7,1839.2,5.437]
[1743248691236,17.20740448,1839.7,1839.2,5.437]
[1743248691544,17.61807047,1839.7,1839.3,5.43667]
[1743248691830,0.4871623,1839.6,1839.3,5.43667]
[1743248692182,0.4871623,1839.6,1839.3,5.43682]
[1743248692632,5.9234223,1839.5,1839.1,5.4374]
[1743248693033,0.4871623,1839.5,1839.2,5.43702]
[1743248693349,0.4871623,1839.5,1838.9,1.5085]
[1743248693533,0.4871623,1839.5,1839.2,5.43689]
[1743248694242,0.4871623,1839.6,1839.2,5.43689]
[1743248695241,0.4871623,1839.6,1839.3,5.43674]
[1743248695426,11.77160448,1839.7,1839.3,5.43666]
[1743248695427,0.4871623,1839.5,1839.3,5.43666]
[1743248695608,0.4871623,1839.5,1839.4,5.43655]
[1743248696109,0.4871623,1839.6,1839.4,5.43655]
[1743248696532,0.4871623,1839.6,1839.3,6.94534]
[1743248696725,0.4871623,1839.6,1839.2,5.43706]
[1743248696922,5.9232623,1839.6,1839.2,5.43706]
[1743248697130,5.43646,1839.5,1839.0,1.5085]
[1743248697329,10.56006448,1839.5,1839.0,5.43773]
[1743248697528,1.6396,1839.5,1839.2,5.43699]
[1743248697733,0.4871623,1839.4,1839.2,10.87389]
[1743248697929,0.4871623,1839.4,1839.2,10.87388]
[1743248698135,0.4871623,1839.4,1839.2,5.4369]
[1743248698449,0.4871623,1839.4,1839.1,5.43744]
[1743248698630,1.6396,1839.5,1839.1,5.43726]
[1743248698631,0.4871623,1839.3,1839.1,5.43726]
[1743248698832,0.4871623,1839.3,1838.8,5.43827]
[1743248699030,0.4871623,1839.3,1839.1,5.4373]
[1743248699551,0.4871623,1839.2,1839.1,5.4373]
[1743248700333,0.4871623,1839.2,1839.1,7.00016981]
[1743248700538,0.4871623,1839.2,1839.1,6.9458]
[1743248700722,5.9229023,1839.7,1839.2,5.43686]
[1743248700980,0.4871623,1839.7,1839.2,6.131666]
[1743248701270,0.4871623,1839.7,1839.3,5.4368]
[1743248701568,0.4871623,1839.7,1839.3,5.43679]
[1743248701771,0.4871623,1839.7,1839.3,5.43674]
[1743248701928,0.4871623,1839.6,1839.3,10.87338]
[1743248702123,0.4871623,1839.6,1839.3,6.5934316]
[1743248702567,0.4871623,1839.6,1839.3,1.1567916]
[1743248702767,0.4871623,1839.6,1839.3,6.5936216]
[1743248702964,0.4871623,1839.6,1839.3,5.43683]
[1743248703263,0.4871623,1839.6,1839.3,5.43681]
[1743248703464,0.4871623,1839.6,1839.1,1.5085]
[1743248703671,0.4871623,1839.6,1838.9,5.981857]
[1743248703672,0.4871623,1839.5,1839.4,7.03041]
[1743248703844,0.4871623,1839.5,1839.4,7.08475983]
[1743248704231,0.4871623,1839.5,1839.4,7.03041]
[1743248704470,0.4871623,1839.5,1839.4,1.5941]
[1743248704651,0.4871623,1839.5,1839.3,5.43663]
[1743248704857,0.4871623,1839.5,1839.4,5.43655]
[1743248705376,14.19211447,1839.9,1839.4,10.8731]
[1743248705596,14.14019233,1839.9,1839.4,10.8731]
[1743248705907,14.14019233,1839.9,1839.4,5.43644]
[1743248706065,14.14019233,1839.9,1839.2,1.5941]
[1743248706066,0.44557233,1839.9,1839.6,5.43577]
[1743248706265,0.44557233,1839.9,1839.8,5.43537]
[1743248706947,0.44557233,1839.9,1839.7,5.979077]
[1743248707170,2.06497233,1839.9,1839.5,5.43597]
[1743248707477,2.06497233,1839.9,1839.6,5.43584]
[1743248707977,2.06497233,1839.9,1839.6,5.4358]
[1743248708179,0.44557233,1839.9,1839.3,1.5941]
[1743248708487,0.44557233,1839.9,1839.7,5.43547]
[1743248708668,0.44557233,1839.9,1839.8,7.573017]
[1743248708879,0.44557233,1839.9,1839.8,7.62736794]
[1743248709095,0.44557233,1839.9,1839.8,7.573017]
[1743248709894,5.88077233,1839.9,1839.5,2.68367175]
[1743248710187,5.43578,1839.7,1839.3,7.0308]
[1743248710391,1.6194,1839.6,1839.3,5.4367]
[1743248710583,1.6194,1839.6,1839.1,5.43742]
[1743248710758,1.6194,1839.6,1839.2,5.43707]
[1743248711074,5.43643,1839.5,1839.1,5.43744]
[1743248711275,7.0554,1839.6,1839.1,5.43719]
[1743248711493,7.0554,1839.6,1839.1,5.49155793]
[1743248711694,5.43674,1839.4,1839.0,5.43769]
[1743248711882,6.635,1839.5,1839.1,5.43732]
[1743248712075,6.635,1839.5,1839.0,5.43766]
[1743248712248,12.07131,1839.5,1839.0,10.87521]
[1743248712448,6.635,1839.5,1839.0,5.43748]
[1743248712676,6.634,1839.4,1839.1,10.87437]
[1743248712877,12.49155,1839.6,1839.1,5.43716]
[1743248713050,13.319545,1839.5,1839.1,5.43716]
[1743248713251,13.319545,1839.5,1838.9,5.49215205]
[1743248713252,6.634,1839.5,1839.2,5.43685]
[1743248713568,5.43669,1839.4,1839.0,5.43758]
[1743248713767,5.43669,1839.4,1838.9,5.43782]
[1743248713972,5.43669,1839.4,1838.9,10.87562]
[1743248714172,6.634,1839.5,1839.1,5.43721]
[1743248714681,6.634,1839.5,1839.2,5.43686]
[1743248714846,6.634,1839.5,1839.1,5.981151]
[1743248715184,5.43656,1839.4,1839.0,5.43768]
[1743248715546,6.634,1839.5,1839.0,0.05437207]
[1743248715749,6.634,1839.5,1839.2,5.43711]
[1743248715994,12.07028,1839.5,1839.1,5.43718]
[1743248716395,12.07028,1839.5,1839.1,10.8745]
[1743248716599,12.07028,1839.5,1839.0,5.4377]
[1743248716800,1.5965,1839.8,1839.4,5.43642]
[1743248717002,1.5965,1839.8,1839.4,5.4364]
[1743248717274,1.5965,1839.8,1839.5,5.43625]
[1743248717481,1.5965,1839.8,1839.5,5.43614]
[1743248717694,29.21557233,1839.9,1839.6,5.43578]
[1743248718299,29.21557233,1839.9,1839.6,10.87158]
[1743248718688,29.21557233,1839.9,1839.6,5.43578]
[1743248719299,3.49406134,1839.7,1839.0,2.752757]
[1743248719479,1.6642,1839.4,1839.0,7.10275]
[1743248719780,1.6642,1839.4,1839.1,5.43743]
[1743248720105,6.631,1839.5,1839.2,5.43687]
[1743248720307,6.631,1839.5,1838.7,6.62802344]
[1743248720308,4.6642,1839.4,1838.7,0.1102899]
[1743248720508,1.6642,1839.0,1838.7,0.1102899]
[1743248720835,8.2942,1839.0,1838.7,0.1102899]
[1743248721028,1.6642,1839.0,1838.7,0.1102899]